Workbook

Sheet gamma
A1: [ID] Identificación del desecho | B1: [RN] Radio-nucleído | C1: [T 1/2] Periodo de semi-desintegración (días) | D1: Fecha de recolección | E1: Peso neto (Peso contenedor lleno - peso contenedor vacío) (g) | F1: Medición de la tasa de dosis (mSv/h) | G1: constante específica del radionucleido. (mSv m2/h Bq) | H1: Fecha de la medición | I1: Actividad superficial (Bq/m2) | J1: Actividad total estimada (Bq) | K1: [CA] Concentración de actividad (Bq/g) | L1: [ND] Nivel de dispensa (Bq/g) | M1: [t] Tiempo estimado de almacenamiento (días) | N1: Fecha probable de dispensa | O1: Medición de comprobación (mSv) | P1: Fecha de vertido
A2: 5 | B2: Tc-99m | C2: =VLOOKUP(B2,'datos Emisores Gamma'!$B$2:$C$28,2,FALSE) -> 0.25 | D2: 2016-06-05 | E2: 5000 | F2: 8 | G2: =VLOOKUP(B2,'datos Emisores Gamma'!$B$2:$E$28,4,FALSE)/1000000 -> 3.317e-11 | H2: 2016-06-06 | K2: =+(0.09*2*F2)/(G2*E2) -> 8682544.468 | L2: =VLOOKUP(B2,'datos Emisores Gamma'!$B$2:$E$28,3,FALSE) -> 100 | M2: =IF(L2>K2,0,(-C2*LN(L2/K2))/LN(2)) -> 4.101457568 | N2: =H2+M2 -> 2016-06-10T02:26:05.934
A3: 10 | B3: I-131 | C3: =VLOOKUP(B3,'datos Emisores Gamma'!$B$2:$C$28,2,FALSE) -> 8.04 | D3: 2017-01-01 | E3: 200 | F3: 0.1 | G3: =VLOOKUP(B3,'datos Emisores Gamma'!$B$2:$E$28,4,FALSE)/1000000 -> 7.64e-11 | H3: 2017-05-05 | K3: =+(0.09*2*F3)/(G3*E3) -> 1178010.471 | L3: =VLOOKUP(B3,'datos Emisores Gamma'!$B$2:$E$28,3,FALSE) -> 100 | M3: 108.7334805 | N3: 2017-08-21T17:36:12.718
A4: 18 | B4: I-131 | C4: =VLOOKUP(B4,'datos Emisores Gamma'!$B$2:$C$28,2,FALSE) -> 8.04 | D4: 2017-05-15 | E4: 100 | F4: 0.1 | G4: =VLOOKUP(B4,'datos Emisores Gamma'!$B$2:$E$28,4,FALSE)/1000000 -> 7.64e-11 | H4: 15-ago-2017 | K4: 2356020.942 | L4: =VLOOKUP(B4,'datos Emisores Gamma'!$B$2:$E$28,3,FALSE) -> 100 | M4: =IF(L4>K4,0,(-C4*LN(L4/K4))/LN(2)) -> 116.7734805 | N4: =H4+M4 -> 2017-12-09T18:33:48.718
C5: =VLOOKUP(B5,'datos Emisores Gamma'!$B$2:$C$28,2,FALSE) ->  | G5: =VLOOKUP(B5,'datos Emisores Gamma'!$B$2:$E$28,4,FALSE)/1000000 ->  | L5: =VLOOKUP(B5,'datos Emisores Gamma'!$B$2:$E$28,3,FALSE) -> 
C6: =VLOOKUP(B6,'datos Emisores Gamma'!$B$2:$C$28,2,FALSE) ->  | G6: =VLOOKUP(B6,'datos Emisores Gamma'!$B$2:$E$28,4,FALSE)/1000000 ->  | L6: =VLOOKUP(B6,'datos Emisores Gamma'!$B$2:$E$28,3,FALSE) -> 
C7: =VLOOKUP(B7,'datos Emisores Gamma'!$B$2:$C$28,2,FALSE) ->  | G7: =VLOOKUP(B7,'datos Emisores Gamma'!$B$2:$E$28,4,FALSE)/1000000 ->  | L7: =VLOOKUP(B7,'datos Emisores Gamma'!$B$2:$E$28,3,FALSE) -> 
C8: =VLOOKUP(B8,'datos Emisores Gamma'!$B$2:$C$28,2,FALSE) ->  | G8: =VLOOKUP(B8,'datos Emisores Gamma'!$B$2:$E$28,4,FALSE)/1000000 ->  | L8: =VLOOKUP(B8,'datos Emisores Gamma'!$B$2:$E$28,3,FALSE) -> 
C9: =VLOOKUP(B9,'datos Emisores Gamma'!$B$2:$C$28,2,FALSE) ->  | G9: =VLOOKUP(B9,'datos Emisores Gamma'!$B$2:$E$28,4,FALSE)/1000000 ->  | L9: =VLOOKUP(B9,'datos Emisores Gamma'!$B$2:$E$28,3,FALSE) -> 
C10: =VLOOKUP(B10,'datos Emisores Gamma'!$B$2:$C$28,2,FALSE) ->  | G10: =VLOOKUP(B10,'datos Emisores Gamma'!$B$2:$E$28,4,FALSE)/1000000 ->  | L10: =VLOOKUP(B10,'datos Emisores Gamma'!$B$2:$E$28,3,FALSE) -> 
C11: =VLOOKUP(B11,'datos Emisores Gamma'!$B$2:$C$28,2,FALSE) ->  | G11: =VLOOKUP(B11,'datos Emisores Gamma'!$B$2:$E$28,4,FALSE)/1000000 ->  | L11: =VLOOKUP(B11,'datos Emisores Gamma'!$B$2:$E$28,3,FALSE) -> 
C12: =VLOOKUP(B12,'datos Emisores Gamma'!$B$2:$C$28,2,FALSE) ->  | G12: =VLOOKUP(B12,'datos Emisores Gamma'!$B$2:$E$28,4,FALSE)/1000000 ->  | L12: =VLOOKUP(B12,'datos Emisores Gamma'!$B$2:$E$28,3,FALSE) -> 
C13: =VLOOKUP(B13,'datos Emisores Gamma'!$B$2:$C$28,2,FALSE) ->  | G13: =VLOOKUP(B13,'datos Emisores Gamma'!$B$2:$E$28,4,FALSE)/1000000 ->  | L13: =VLOOKUP(B13,'datos Emisores Gamma'!$B$2:$E$28,3,FALSE) -> 
C14: =VLOOKUP(B14,'datos Emisores Gamma'!$B$2:$C$28,2,FALSE) ->  | G14: =VLOOKUP(B14,'datos Emisores Gamma'!$B$2:$E$28,4,FALSE)/1000000 ->  | L14: =VLOOKUP(B14,'datos Emisores Gamma'!$B$2:$E$28,3,FALSE) -> 
C15: =VLOOKUP(B15,'datos Emisores Gamma'!$B$2:$C$28,2,FALSE) ->  | G15: =VLOOKUP(B15,'datos Emisores Gamma'!$B$2:$E$28,4,FALSE)/1000000 ->  | L15: =VLOOKUP(B15,'datos Emisores Gamma'!$B$2:$E$28,3,FALSE) -> 
C16: =VLOOKUP(B16,'datos Emisores Gamma'!$B$2:$C$28,2,FALSE) ->  | G16: =VLOOKUP(B16,'datos Emisores Gamma'!$B$2:$E$28,4,FALSE)/1000000 ->  | L16: =VLOOKUP(B16,'datos Emisores Gamma'!$B$2:$E$28,3,FALSE) -> 
C17: =VLOOKUP(B17,'datos Emisores Gamma'!$B$2:$C$28,2,FALSE) ->  | G17: =VLOOKUP(B17,'datos Emisores Gamma'!$B$2:$E$28,4,FALSE)/1000000 ->  | L17: =VLOOKUP(B17,'datos Emisores Gamma'!$B$2:$E$28,3,FALSE) -> 
C18: =VLOOKUP(B18,'datos Emisores Gamma'!$B$2:$C$28,2,FALSE) ->  | G18: =VLOOKUP(B18,'datos Emisores Gamma'!$B$2:$E$28,4,FALSE)/1000000 ->  | L18: =VLOOKUP(B18,'datos Emisores Gamma'!$B$2:$E$28,3,FALSE) ->  | M18: =IF(L18>K18,0,(-C18*LN(L18/K18))/LN(2)) ->  | N18: =H18+M18 -> 
C19: =VLOOKUP(B19,'datos Emisores Gamma'!$B$2:$C$28,2,FALSE) ->  | G19: =VLOOKUP(B19,'datos Emisores Gamma'!$B$2:$E$28,4,FALSE)/1000000 ->  | L19: =VLOOKUP(B19,'datos Emisores Gamma'!$B$2:$E$28,3,FALSE) -> 
C20: =VLOOKUP(B20,'datos Emisores Gamma'!$B$2:$C$28,2,FALSE) ->  | G20: =VLOOKUP(B20,'datos Emisores Gamma'!$B$2:$E$28,4,FALSE)/1000000 ->  | L20: =VLOOKUP(B20,'datos Emisores Gamma'!$B$2:$E$28,3,FALSE) -> 
C21: =VLOOKUP(B21,'datos Emisores Gamma'!$B$2:$C$28,2,FALSE) ->  | G21: =VLOOKUP(B21,'datos Emisores Gamma'!$B$2:$E$28,4,FALSE)/1000000 ->  | L21: =VLOOKUP(B21,'datos Emisores Gamma'!$B$2:$E$28,3,FALSE) -> 
C22: =VLOOKUP(B22,'datos Emisores Gamma'!$B$2:$C$28,2,FALSE) ->  | G22: =VLOOKUP(B22,'datos Emisores Gamma'!$B$2:$E$28,4,FALSE)/1000000 ->  | L22: =VLOOKUP(B22,'datos Emisores Gamma'!$B$2:$E$28,3,FALSE) -> 
C23: =VLOOKUP(B23,'datos Emisores Gamma'!$B$2:$C$28,2,FALSE) ->  | G23: =VLOOKUP(B23,'datos Emisores Gamma'!$B$2:$E$28,4,FALSE)/1000000 ->  | L23: =VLOOKUP(B23,'datos Emisores Gamma'!$B$2:$E$28,3,FALSE) -> 
C24: =VLOOKUP(B24,'datos Emisores Gamma'!$B$2:$C$28,2,FALSE) ->  | G24: =VLOOKUP(B24,'datos Emisores Gamma'!$B$2:$E$28,4,FALSE)/1000000 ->  | L24: =VLOOKUP(B24,'datos Emisores Gamma'!$B$2:$E$28,3,FALSE) -> 
C25: =VLOOKUP(B25,'datos Emisores Gamma'!$B$2:$C$28,2,FALSE) ->  | G25: =VLOOKUP(B25,'datos Emisores Gamma'!$B$2:$E$28,4,FALSE)/1000000 ->  | L25: =VLOOKUP(B25,'datos Emisores Gamma'!$B$2:$E$28,3,FALSE) -> 
C26: =VLOOKUP(B26,'datos Emisores Gamma'!$B$2:$C$28,2,FALSE) ->  | G26: =VLOOKUP(B26,'datos Emisores Gamma'!$B$2:$E$28,4,FALSE)/1000000 ->  | L26: =VLOOKUP(B26,'datos Emisores Gamma'!$B$2:$E$28,3,FALSE) -> 

Sheet beta
A1: [ID] Identificación del Desecho | B1: [RN] Radio-nucleído | C1: [T 1/2] Periodo de semi-desintegración (días) | D1: Fecha de recolección | E1: Peso neto (Peso contenedor lleno - peso contenedor vacío) (g) | F1: Medición de fluencia de partículas (cps) | G1: Fecha de la medición | H1: Fondo (cps) | I1: Eficiencia de detector (0-1) | J1: Area de detector (m2) | K1: Distancia de medida | L1: Concentracion de actividad del desecho (Bq/g) | M1: Incertidumbre en el cálculo de la concetración de actividad (Bq/g) | N1: Nivel de dispensa (Bq/g) | O1: Tiempo estimado de almacenamiento (días) | P1: Fecha probable de dispensa | Q1: Medición de control (cps) | R1: Fecha de gestión | S1: Via de Gestión
A2: 11 | B2: P-32 | C2: =VLOOKUP(B2,'datos Emisores Beta '!$A$2:$B$4,2,FALSE) -> 14.3 | D2: 15-05-17 | E2: 50 | F2: 300000 | G2: 15-05-17 | H2: 8 | I2: 0.8 | J2: 0.0016 | L2: =IF(ISBLANK(F2),"",(4*PI()*(F2-H2)*2*0.0025)/(J2*I2*E2)) -> 294516.4573 | N2: =LOOKUP(B2,'datos Emisores Beta '!A$2:A$4,'datos Emisores Beta '!C$2:C$4) -> 1000 | O2: =IF(N2>L2,0,(C2*LN((L2)/N2))/LN(2)) -> 117.2915235 | P2: =G2+O2 -> 2017-09-09T06:59:47.633
A3: 17 | B3: S-35 | C3: =VLOOKUP(B3,'datos Emisores Beta '!$A$2:$B$4,2,FALSE) -> 87.4 | D3: 01-06-17 | E3: 10 | F3: 50000 | G3: 01-06-17 | H3: 8 | I3: 0.8 | J3: 0.0016 | L3: =IF(ISBLANK(F3),"",(4*PI()*(F3-H3)*2*0.0025)/(J3*I3*E3)) -> 245397.6562 | N3: =LOOKUP(B3,'datos Emisores Beta '!A$2:A$4,'datos Emisores Beta '!C$2:C$4) -> 100000 | O3: =IF(N3>L3,0,(C3*LN((L3)/N3))/LN(2)) -> 113.1936164 | P3: =G3+O3 -> 2017-09-22T04:38:48.460
C4: =VLOOKUP(B4,'datos Emisores Beta '!$A$2:$B$4,2,FALSE) ->  | I4: 0.8 | N4: =LOOKUP(B4,'datos Emisores Beta '!A$2:A$4,'datos Emisores Beta '!C$2:C$4) -> 
C5: =VLOOKUP(B5,'datos Emisores Beta '!$A$2:$B$4,2,FALSE) ->  | I5: 0.8 | N5: =LOOKUP(B5,'datos Emisores Beta '!A$2:A$4,'datos Emisores Beta '!C$2:C$4) -> 
C6: =VLOOKUP(B6,'datos Emisores Beta '!$A$2:$B$4,2,FALSE) ->  | I6: 0.8 | N6: =LOOKUP(B6,'datos Emisores Beta '!A$2:A$4,'datos Emisores Beta '!C$2:C$4) -> 
C7: =VLOOKUP(B7,'datos Emisores Beta '!$A$2:$B$4,2,FALSE) ->  | I7: 0.8 | N7: =LOOKUP(B7,'datos Emisores Beta '!A$2:A$4,'datos Emisores Beta '!C$2:C$4) -> 
C8: =VLOOKUP(B8,'datos Emisores Beta '!$A$2:$B$4,2,FALSE) ->  | I8: 0.8 | N8: =LOOKUP(B8,'datos Emisores Beta '!A$2:A$4,'datos Emisores Beta '!C$2:C$4) -> 
C9: =VLOOKUP(B9,'datos Emisores Beta '!$A$2:$B$4,2,FALSE) ->  | I9: 0.8 | N9: =LOOKUP(B9,'datos Emisores Beta '!A$2:A$4,'datos Emisores Beta '!C$2:C$4) -> 
C10: =VLOOKUP(B10,'datos Emisores Beta '!$A$2:$B$4,2,FALSE) ->  | I10: 0.8 | N10: =LOOKUP(B10,'datos Emisores Beta '!A$2:A$4,'datos Emisores Beta '!C$2:C$4) -> 
C11: =VLOOKUP(B11,'datos Emisores Beta '!$A$2:$B$4,2,FALSE) ->  | I11: 0.8 | N11: =LOOKUP(B11,'datos Emisores Beta '!A$2:A$4,'datos Emisores Beta '!C$2:C$4) -> 
C12: =VLOOKUP(B12,'datos Emisores Beta '!$A$2:$B$4,2,FALSE) ->  | I12: 0.8 | N12: =LOOKUP(B12,'datos Emisores Beta '!A$2:A$4,'datos Emisores Beta '!C$2:C$4) -> 
C13: =VLOOKUP(B13,'datos Emisores Beta '!$A$2:$B$4,2,FALSE) ->  | I13: 0.8 | N13: =LOOKUP(B13,'datos Emisores Beta '!A$2:A$4,'datos Emisores Beta '!C$2:C$4) -> 
C14: =VLOOKUP(B14,'datos Emisores Beta '!$A$2:$B$4,2,FALSE) ->  | I14: 0.8 | N14: =LOOKUP(B14,'datos Emisores Beta '!A$2:A$4,'datos Emisores Beta '!C$2:C$4) -> 
C15: =VLOOKUP(B15,'datos Emisores Beta '!$A$2:$B$4,2,FALSE) ->  | I15: 0.8 | N15: =LOOKUP(B15,'datos Emisores Beta '!A$2:A$4,'datos Emisores Beta '!C$2:C$4) -> 
C16: =VLOOKUP(B16,'datos Emisores Beta '!$A$2:$B$4,2,FALSE) ->  | I16: 0.8 | N16: =LOOKUP(B16,'datos Emisores Beta '!A$2:A$4,'datos Emisores Beta '!C$2:C$4) -> 
C17: =VLOOKUP(B17,'datos Emisores Beta '!$A$2:$B$4,2,FALSE) ->  | I17: 0.8 | N17: =LOOKUP(B17,'datos Emisores Beta '!A$2:A$4,'datos Emisores Beta '!C$2:C$4) -> 
C18: =VLOOKUP(B18,'datos Emisores Beta '!$A$2:$B$4,2,FALSE) ->  | I18: 0.8 | N18: =LOOKUP(B18,'datos Emisores Beta '!A$2:A$4,'datos Emisores Beta '!C$2:C$4) -> 
C19: =VLOOKUP(B19,'datos Emisores Beta '!$A$2:$B$4,2,FALSE) ->  | I19: 0.8 | N19: =LOOKUP(B19,'datos Emisores Beta '!A$2:A$4,'datos Emisores Beta '!C$2:C$4) -> 
C20: =VLOOKUP(B20,'datos Emisores Beta '!$A$2:$B$4,2,FALSE) ->  | I20: 0.8 | N20: =LOOKUP(B20,'datos Emisores Beta '!A$2:A$4,'datos Emisores Beta '!C$2:C$4) -> 
C21: =VLOOKUP(B21,'datos Emisores Beta '!$A$2:$B$4,2,FALSE) ->  | I21: 0.8 | N21: =LOOKUP(B21,'datos Emisores Beta '!A$2:A$4,'datos Emisores Beta '!C$2:C$4) -> 
C22: =VLOOKUP(B22,'datos Emisores Beta '!$A$2:$B$4,2,FALSE) ->  | I22: 0.8 | N22: =LOOKUP(B22,'datos Emisores Beta '!A$2:A$4,'datos Emisores Beta '!C$2:C$4) -> 

Sheet datos Emisores Gamma
A1: ITEM | B1: Radionuclido | C1: T1/2 (días) | D1: Nivel Dispensa [>1000kg] (Bq/g) | E1: Gamma (mSv/h.MBq)
A2: 2 | B2: C-11 | C2: 0.014159 | D2: 10 | E2: 0.0001908
A3: 4 | B3: O-15 | C3: 0.0014148 | D3: 100 | E3: 0.0001911
A4: 5 | B4: F-18 | C4: 0.075 | D4: 10 | E4: 0.0001851
A5: 6 | B5: Na-24 | C5: 0.625 | D5: 10 | E5: 0.000512
A6: 12 | B6: Sc-46 | C6: 83.79 | D6: 10 | E6: 0.0003154
A7: 13 | B7: Cr-51 | C7: 27.7 | D7: 1000 | E7: 6.32e-06
A8: 15 | B8: Co-58 | C8: 70.8 | D8: 10 | E8: 0.0001652
A9: 16 | B9: Fe-59 | C9: 44.5 | D9: 10 | E9: 0.0001787
A10: 17 | B10: Ga-67 | C10: 3.26 | D10: 100 | E10: 3.04e-05
A11: 18 | B11: Ga-68 | C11: 0.0469 | D11: 10 | E11: 0.0001763
A12: 21 | B12: Sr-85 | C12: 64.8 | D12: 10 | E12: 0.0002038
A13: 22 | B13: Rb-86 | C13: 18.6 | D13: 100 | E13: 0.0001458
A14: 23 | B14: Rb82m | C14: 0.2666 | D14: 10 | E14: 0.0002076
A15: 24 | B15: Sr89 | C15: 50.5 | D15: 1000 | E15: 2.205e-08
A16: 25 | B16: Y90 | C16: 2.67 | D16: 1000 | E16: 0.0001316
A17: 26 | B17: Nb-95 | C17: 34.9 | D17: 10 | E17: 0.0001295
A18: 27 | B18: Tc-99m | C18: 0.25 | D18: 100 | E18: 3.317e-05
A19: 28 | B19: In-111 | C19: 2.8 | D19: 100 | E19: 0.0001356
A20: 29 | B20: I-123 | C20: 0.55 | D20: 100 | E20: 7.47e-05
A21: 30 | B21: I-125 | C21: 60.14 | D21: 1000 | E21: 7.432e-05
A22: 31 | B22: I-131 | C22: 8.04 | D22: 100 | E22: 7.64e-05
A23: 33 | B23: Xe-133 | C23: 5.2 | D23: 1000 | E23: 2.78e-05
A24: 34 | B24: Sm-153 | C24: 1.9 | D24: 100 | E24: 2.44e-05
A25: 35 | B25: Er-169 | C25: 9.3 | D25: 10000 | E25: 3.406e-10
A26: 36 | B26: Au-198 | C26: 2.7 | D26: 100 | E26: 7.881e-05
A27: 37 | B27: Tl-201 | C27: 3 | D27: 100 | E27: 2.372e-05
A28: 38 | B28: Hg-203 | C28: 46.6 | D28: 100 | E28: 6.841e-05

Sheet datos Emisores Beta
A1: Radionuclido | B1: T1/2 (días) | C1: Nivel Dispensa [>1000kg] (Bq/g) | D1: Nivel Exención [>1000kg] (Bq/g) | E1: Gamma
A2: P-32 | B2: 14.3 | C2: 1000 | E2: -
A3: P-33 | B3: 25.4 | C3: 100000 | E3: -
A4: S-35 | B4: 87.4 | C4: 100000 | E4: -

Sheet datos de entrada
A1: ESQUEMA DE MEDICIÓN
A5: Para emisores gamma d= 0.3 metros
A6: Para emisores beta d=0.05 metros
